Cogmind - Beta 13 @@@ ROGUE MODE // 2024.07.02 @ 20:01:31 Player: TryingToLearn Result: Destroyed by D-53 Grenadier with Mini Grenade Launcher Performance ------------- Evolutions (1) 500 Regions Visited (4) 800 Robots Destroyed (30) 150 Value Destroyed (727) 727 Prototype IDs (2) 40 Alien Tech Used (0) 0 Bonus (0) 0 TOTAL SCORE: 2217 Bonus ------- None Cogmind --------- Core Integrity 0/400 Matter 290/300 Energy 36/100 System Corruption 0% Temperature Cool (0) Movement Rolling (100) Location -9/Mines Parts ------- > --- POWER (1) -------- (None) > --- PROPULSION (2) --- Compact Wheel > --- UTILITY (4) ------ Small Storage Unit Signal Interpreter Terrain Scan Processor > --- WEAPON (2) ------- (None) > --- INVENTORY (8) ---- Ion Engine Light Ion Engine Aluminum Leg Aluminum Leg Signal Interpreter Peak State ------------ > --- POWER ------------ Light Nuclear Core > --- PROPULSION ------- Aluminum Leg Aluminum Leg > --- UTILITY ---------- Heat Sink Small Storage Unit Signal Interpreter Shield Generator > --- WEAPON ----------- Improved Medium Laser Improved Medium Laser > --- INVENTORY -------- Light Nuclear Core Aluminum Leg Aluminum Leg Aluminum Leg Compact Wheel Signal Interpreter Shield Generator Rocket Launcher [Rating: 17] Favorites ----------- Power Light Nuclear Core Engine Light Ion Engine Power Core Light Nuclear Core Propulsion Aluminum Leg Leg Aluminum Leg Wheel Compact Wheel Utility Small Storage Unit Device Shield Generator Storage Small Storage Unit Processor Signal Interpreter Weapon Particle Gun Energy Gun Particle Gun Ballistic Gun Light Assault Rifle Launcher Rocket Launcher Build | -11 -10 -10 -9 -9 ------- Run | Yrd Mat Min Mat Min Slots Evolved 2 | . . . 2 . Power . | . . . . . Propulsion . | . . . . . Utility 2 | . . . 2 . Weapon . | . . . . . Parts Attached 29 | 6 5 . 17 1 Power 3 | 1 1 . 1 . Engine 1 | 1 . . . . Core 2 | . 1 . 1 . Reactor . | . . . . . Propulsion 7 | 2 . . 4 1 Treads . | . . . . . Leg 6 | 2 . . 4 . Wheel 1 | . . . . 1 Hover . | . . . . . Flight . | . . . . . Utility 8 | 1 2 . 5 . Device 3 | . 1 . 2 . Storage 2 | 1 . . 1 . Processor 3 | . 1 . 2 . Hackware . | . . . . . Protection . | . . . . . Artifact . | . . . . . Weapon 11 | 2 2 . 7 . Energy Gun 7 | . 2 . 5 . Energy Cannon . | . . . . . Ballistic Gun 2 | 2 . . . . Ballistic Cannon . | . . . . . Launcher 2 | . . . 2 . Special Weapon . | . . . . . Impact Weapon . | . . . . . Slashing Weapon . | . . . . . Piercing Weapon . | . . . . . Special Melee Weapon . | . . . . . Unidentified Prototypes . | . . . . . Parts Lost 14 | . 2 . 6 6 Power 3 | . 1 . 1 1 Propulsion 4 | . . . 2 2 Utility 3 | . . . 2 1 Weapon 4 | . 1 . 1 2 Highest Loss Streak 6 | . 2 . 6 6 To Critical Strikes . | . . . . . Average Slot Usage (%) 91 | . 93 100 86 96 Engine 1 | . 6 . . . Core 10 | . 5 14 10 11 Leg 24 | . 28 28 21 22 Device 11 | . 3 14 14 7 Storage 12 | . 14 14 11 11 Processor 6 | . 9 . 8 22 Energy Gun 19 | . 7 28 20 22 Ballistic Gun 3 | . 17 . . . Naked Turns . | . . . . . Heaviest Build 20 | 10 18 18 20 18 Greatest Support 20 | 20 20 20 20 20 Greatest Overweight (x) 3 | 2 . . 3 3 Average Overweight (x) . | . . . . . Largest Inventory Capacity 8 | 8 8 8 8 8 Average Capacity 7 | 7 8 8 8 8 Most Carried 8 | 5 8 8 8 6 Average Carried 6 | 2 7 8 6 5 Final Capacity 8 | 8 8 8 8 8 Final Carried 8 | 5 8 8 6 5 Class Distribution -------------------- 93% | Mutant 6% | Scavenger-Mutant Dominant Class ---------------- Mutant | -10/Materials Mutant | -10/Mines Mutant | -9/Materials Mutant | -9/Mines Resources | -11 -10 -10 -9 -9 ----------- Run | Yrd Mat Min Mat Min Matter Collected 569 | 199 112 30 218 10 Remotely . | . . . . . Salvage Created 742 | . 166 14 562 . Parts 46 | . 9 1 36 . Haulers Intercepted 2 | . . . 2 . Recyclers Shooed . | . . . . . Parts Field Recycled . | . . . . . Retrieved Matter . | . . . . . Parts Self-Destructed . | . . . . . Prevented . | . . . . . Kills | -11 -10 -10 -9 -9 ------- Run | Yrd Mat Min Mat Min Combat Hostiles Destroyed 24 | . 4 . 20 . Guns 14 | . 4 . 10 . AOE 9 | . . . 9 . Classes Destroyed 8 | . 1 1 6 . Builder 1 | . . . 1 . Tunneler 1 | . . 1 . . Hauler 2 | . . . 2 . Mechanic 1 | . . . 1 . Watcher 1 | . . . 1 . Swarmer 9 | . . . 9 . Grunt 12 | . 4 . 8 . Sentry 3 | . . . 3 . Best Kill Streak 12 | . 4 1 12 . Combat Bots Only 8 | . 4 . 8 . Max Kills in Single Turn 3 | . 1 1 3 . Gunslinging . | . . . . . Exploded 2 | . . . 2 . Melee . | . . . . . Uniques/NPCs Destroyed . | . . . . . Combat | -11 -10 -10 -9 -9 -------- Run | Yrd Mat Min Mat Min Hostile Shots Fired 181 | . 29 . 131 21 Missed 43 | . 5 . 37 1 Damage Taken 1776 | . 311 . 921 544 Core 448 | . 21 . 267 160 Absorbed by Shields 269 | . . . 210 59 Core Remaining (%) 95 | 100 . 91 . . Volleys Fired 68 | . 25 1 42 . Largest 2 | . 2 2 2 . Hottest 130 | . 40 130 130 . Shots Fired 120 | . 41 2 77 . Gun 112 | . 41 2 69 . Cannon . | . . . . . Launcher 8 | . . . 8 . Special . | . . . . . Kinetic 41 | . 41 . . . Thermal 71 | . . 2 69 . Explosive 8 | . . . 8 . Electromagnetic . | . . . . . Robot Hit Streak 14 | . 12 14 11 . Robot Miss Streak 4 | . 1 . 4 . Penetration Max . | . . . . . Secondary Targets 1 | . . . 1 . Max Gunslinging Chain 1 | . . . 1 . Shots Hit Robots 84 | . 33 2 49 . Core Hits 48 | . 11 1 36 . Critical Kills . | . . . . . Critical Parts Destroyed . | . . . . . Critical Strikes 3 | . . . 3 . Burn 3 | . . . 3 . Melee Attacks . | . . . . . Impact . | . . . . . Slashing . | . . . . . Piercing . | . . . . . Sneak Attacks . | . . . . . Combat Hostiles . | . . . . . Follow-up Attacks . | . . . . . Damage Inflicted 1965 | . 279 30 1656 . Guns 1063 | . 279 30 754 . Cannons . | . . . . . Explosions 902 | . . . 902 . Melee . | . . . . . Ramming . | . . . . . Kinetic 279 | . 279 . . . Thermal 784 | . . 30 754 . Explosive 902 | . . . 902 . Electromagnetic . | . . . . . Impact . | . . . . . Slashing . | . . . . . Piercing . | . . . . . Highest Corruption . | . . . . . Average Corruption . | . . . . . Corruption Purged . | . . . . . Corruption Blocked . | . . . . . Overload Shots . | . . . . . Overflow Damage 53 | . . . 53 . Projectiles . | . . . . . Explosions 53 | . . . 53 . Melee . | . . . . . Knockbacks . | . . . . . Impact . | . . . . . Kinetic . | . . . . . Secondary . | . . . . . Self-Inflicted Damage 82 | . . . 82 . Shots 4 | . . . 4 . Rammed . | . . . . . Targets Rammed . | . . . . . Kicked . | . . . . . Crushed . | . . . . . Highest Temperature 363 | . 43 75 363 . Average Temperature 85 | . 14 41 100 . Received Heat Transfer 473 | . 192 . 281 . Effects 1 | . . . 1 . Shutdowns 1 | . . . 1 . Siege Activations . | . . . . . Robots Corrupted . | . . . . . Combat Hostiles . | . . . . . Parts Fried . | . . . . . Impact Corruptions . | . . . . . Robots Melted 1 | . . . 1 . Combat Hostiles 1 | . . . 1 . Parts Melted 6 | . . . 6 . Heat Transferred 1961 | . . 74 1887 . Parts Sabotaged . | . . . . . Parts Stolen . | . . . . . Parts Stripped . | . . . . . Power Chain Reactions . | . . . . . Alert | -11 -10 -10 -9 -9 ------- Run | Yrd Mat Min Mat Min Peak Influence 403 | . 156 65 403 151 Initial 136 | . . 60 25 136 Average 128 | . 77 62 189 137 Maximum Alert Level 2 | . . . 2 . Low Security (%) 73 | 100 100 100 49 100 Level 1 26 | . . . 50 . Level 2 . | . . . . . Level 3 . | . . . . . Level 4 . | . . . . . Level 5 . | . . . . . High Security . | . . . . . Max Security . | . . . . . Squads Dispatched 4 | . 1 . 3 . Investigation 2 | . . . 2 . Extermination . | . . . . . Reinforcement 2 | . 1 . 1 . Assault . | . . . . . Garrison . | . . . . . Intercept . | . . . . . Searches Triggered . | . . . . . Construction Impeded . | . . . . . Haulers Reinforced . | . . . . . Active Scanning Responses . | . . . . . Cargo Convoy Interrupts . | . . . . . Stealth | -11 -10 -10 -9 -9 --------- Run | Yrd Mat Min Mat Min Distress Signals 1 | . . . 1 . Communications Jammed . | . . . . . Distress Signals . | . . . . . Times Spotted 48 | . 9 . 28 11 Peak Tracking Total 10 | . 7 . 9 10 Tactical Retreats 4 | . 1 . 3 . Traps | -11 -10 -10 -9 -9 ------- Run | Yrd Mat Min Mat Min Traps Triggered 1 | . . . 1 . Indirectly . | . . . . . Trap Hack Attempts . | . . . . . Triggered . | . . . . . Disarmed . | . . . . . Reprogrammed . | . . . . . Reused . | . . . . . Traps Extracted . | . . . . . Installed . | . . . . . Triggered . | . . . . . Machines | -11 -10 -10 -9 -9 ---------- Run | Yrd Mat Min Mat Min Machines Disabled 1 | . . . 1 . Max in Single Turn 1 | . . . 1 . Machines Repaired . | . . . . . Machines Dismantled . | . . . . . Machines Sabotaged . | . . . . . Overloaded Fab Kills . | . . . . . Hacking | -11 -10 -10 -9 -9 --------- Run | Yrd Mat Min Mat Min Machines Accessed 5 | . 2 . 3 . Terminals 4 | . 2 . 2 . Fabricators . | . . . . . Repair Stations . | . . . . . Recycling Units . | . . . . . Scanalyzers 1 | . . . 1 . Garrison Access . | . . . . . Total Hacks 12 | . 5 . 7 . Successful 10 | . 4 . 6 . Failed 2 | . 1 . 1 . Catastrophic . | . . . . . Database Lockouts . | . . . . . Manual 6 | . 1 . 5 . Terminals 10 | . 5 . 5 . Fabricators . | . . . . . Repair Stations . | . . . . . Recycling Units . | . . . . . Scanalyzers 2 | . . . 2 . Garrison Access . | . . . . . Terminal Hacks 5 | . 4 . 1 . Prototype ID Bank 1 | . 1 . . . Recycling Unit Index 1 | . 1 . . . Unreport Threat 1 | . . . 1 . Locate Traps 1 | . 1 . . . Zone Layout 1 | . 1 . . . Fabricator Hacks . | . . . . . Repair Station Hacks . | . . . . . Recycling Unit Hacks . | . . . . . Scanalyzer 2 | . . . 2 . Insert Component 1 | . . . 1 . Analyze 1 | . . . 1 . Garrison Access Hacks . | . . . . . Unauthorized Hacks 3 | . . . 3 . Terminals 3 | . . . 3 . Assimilate 1 | . . . 1 . Botnet 2 | . . . 2 . Fabricators . | . . . . . Repair Stations . | . . . . . Recycling Units . | . . . . . Scanalyzers . | . . . . . Garrison Access . | . . . . . Data Cores Recovered . | . . . . . Used . | . . . . . Hacking Detections 3 | . 2 . 1 . Full Trace Events 1 | . . . 1 . Feedback Events . | . . . . . Feedback Blocked . | . . . . . Robot Schematics Acquired . | . . . . . Robots Built . | . . . . . Authchips . | . . . . . Time . | . . . . . Total Robot Build Rating . | . . . . . Part Schematics Acquired 1 | . . . 1 . Parts Built . | . . . . . Authchips . | . . . . . Time . | . . . . . Total Part Build Rating . | . . . . . Parts Repaired . | . . . . . Time . | . . . . . Parts Recycled . | . . . . . Recycled Matter . | . . . . . Retrieved Matter . | . . . . . Retrieved Components . | . . . . . Parts Scanalyzed 1 | . . . 1 . Part Schematics Acquired 1 | . . . 1 . Parts Damaged . | . . . . . Bothacking | -11 -10 -10 -9 -9 ------------ Run | Yrd Mat Min Mat Min Used RIF Installer . | . . . . . Robots Hacked . | . . . . . Non-combat . | . . . . . Combat . | . . . . . Robot Hacks Applied . | . . . . . Relay Couplers Released . | . . . . . Fabnet Peak Effective % . | . . . . . Robots Rewired . | . . . . . Allies Hacked . | . . . . . Hacks Repelled . | . . . . . Allies | -11 -10 -10 -9 -9 -------- Run | Yrd Mat Min Mat Min Total Allies . | . . . . . Largest Group . | . . . . . Highest-Rated Group . | . . . . . Highest-Rated Ally . | . . . . . Total Orders . | . . . . . Ally Attacks . | . . . . . Total Damage . | . . . . . Kills . | . . . . . Allies Corrupted . | . . . . . Allies Melted . | . . . . . Intel | -11 -10 -10 -9 -9 ------- Run | Yrd Mat Min Mat Min Robot Analysis Total . | . . . . . Derelict Logs Recovered . | . . . . . Drone Launches . | . . . . . Drone Recoveries . | . . . . . Exploration | -11 -10 -10 -9 -9 ------------- Run | Yrd Mat Min Mat Min Turns Passed 1455 | 82 265 328 751 29 Spaces Moved 892 | 62 142 270 401 17 Core 19 | 13 . . 5 1 Treads . | . . . . . Legs 873 | 49 142 270 396 16 Wheels . | . . . . . Hover . | . . . . . Flight . | . . . . . Fastest Speed 50 | 50 120 120 120 120 Average Speed 120 | 110 120 120 123 128 Slowest Speed 200 | 150 120 120 200 200 Overloaded Moves . | . . . . . Propulsion Burnouts . | . . . . . Robots Hopped . | . . . . . Cave-ins Triggered . | . . . . . Exploration Rate (%) 27 | 4 32 70 23 7 Regions Visited 4 Branch Regions 2 Pre-discovered Areas . | . . . . . Known Exits Taken 1 | . . . 1 . Unknown Exits Taken 3 | 1 1 1 . . Scrap Searched . | . . . . . Spaces Dug . | . . . . . Terrain Destroyed 55 | . . . 55 . Melee . | . . . . . Projectile . | . . . . . AOE 55 | . . . 55 . Terrain Rammed . | . . . . . Walls Destroyed . | . . . . . Machines Disabled . | . . . . . Actions | -11 -10 -10 -9 -9 --------- Run | Yrd Mat Min Mat Min Total 1159 | 72 205 272 586 24 Wait 136 | . 20 2 108 6 Move 888 | 61 141 269 400 17 Hop . | . . . . . Pick Up 19 | 5 7 . 7 . Fast Attach 15 | 6 5 . 4 . Attach 10 | . . . 9 1 Detach 5 | . 2 . 3 . Swap 4 | . . . 4 . Drop 14 | . 5 . 9 . Fire 68 | . 25 1 42 . Melee . | . . . . . Ram . | . . . . . Kick . | . . . . . Crush . | . . . . . Escape Stasis . | . . . . . Rewire . | . . . . . Trap . | . . . . . Miscellaneous . | . . . . . Route ------- -11/Scrapyard -10/Materials (discovered 2 exits: Mat / [*Min]) -10/Mines -9/Materials -9/Mines (discovered 1 exit: [*Mat]) History --------- Turn | Location | Event 2 | -11/Scrapyard | Discovered new exit (range 16) 83 | -11/Scrapyard | Entered Materials 316 | -10/Materials | Build established: Mutant 321 | -10/Materials | Discovered new exit (range 18) 329 | -10/Materials | Discovered new exit (range 16) 348 | -10/Materials | Entered Mines 663 | -10/Mines | Discovered new exit (range 5) 676 | -10/Mines | Entered Materials 676 | -9/Materials | Evolved 2 slots: Utility x2 1109 | -9/Materials | Destroyed 8 combat bots 1119 | -9/Materials | Core integrity fell below 50% 1146 | -9/Materials | Lost 6 parts (1p2n2u1w) 1363 | -9/Materials | Discovered new exit (range 4) 1409 | -9/Materials | Identified exit to Mines 1427 | -9/Materials | Entered Mines 1428 | -9/Mines | Assembled infested the area 1447 | -9/Mines | Met a Derelict bent on vengeance 1453 | -9/Mines | Core integrity fell below 20% 1454 | -9/Mines | Discovered new exit (range 8) 1456 | -9/Mines | Destroyed by D-53 Grenadier with Mini Grenade Launcher Last Messages --------------- 01428_ K-01 Serf collects debris. 01434_ C-30 ARC bursts open, deploying its payload. 01434_ D-53 Grenadier unfolds itself. 01435_ K-01 Serf destroyed. 01440_ Acquired 10 matter. 01441_ as-63241 destroyed. 01443_ The unstable cave ceiling collapses. 01443_ as-10382 destroyed. 01443_ as-73381 destroyed. 01443_ as-91405 destroyed. 01443_ as-93328 destroyed. 01445_ as-53086 destroyed. 01445_ as-54227 destroyed. 01448_ Shield Generator destroyed. 01450_ Lgt. Nuclear Core destroyed. 01451_ Aluminum Leg destroyed. 01454_ Imp. Medium Laser destroyed. 01454_ EXIT=FOUND 01455_ Imp. Medium Laser destroyed. 01456_ The unstable cave ceiling collapses. Map ----- +----------------------------------------------------+ | | | | | | | | | | | | | | | | | ????????????????????????????????? | | ????????????????????????????????? | | ?????????????????????#########??? | | ????????????????????## ##?? | | ??????????????????### #?? | | ?????????????????## ##? | | ?????????????????# #? | | ??????????????? ## #? | | ???????????? a ##? | | ???????????? ##? | | ???????????? * = ## | | ????????????? ??????# # | | ?????????????????????# # | | ?????????????????????## # | | ?????????????????????# d # | | ?????????????????????# # | | ?????????????????????# # | | ?????????????????????# @d ## | | ?????????????????????# ##? | | ??????????????????? #?? | | ???????????????? # ##?? | | ??????????????# ### ###??? | | ??????????????## l< ??####????? | | ???????????????# ???????????? | | ???????????????# ????????????? | | ??????????????# ?????????????? | | ????????????? ??????????????? | | ?????????????? ???????????????? | | ?????????????? ????????????????? | | ????????????????????????????????? | | ????????????????????????????????? | | ????????????????????????????????? | | ????????????????????????????????? | | ????????????????????????????????? | | ????????????????????????????????? | | ????????????????????????????????? | | ????????????????????????????????? | | ????????????????????????????????? | | ????????????????????????????????? | | ????????????????????????????????? | | ????????????????????????????????? | | ????????????????????????????????? | +----------------------------------------------------+ Best States ------------- Heat Dissipation 38 Energy Generation 14 Energy Capacity 160 Matter Stores 300 Matter Capacity 300 Sight Range 16 Terrain Scan Density 85 Evasion (%) 55 Item Schematics ----------------- Com. Wheel | -9/Materials | Scanalyzed Robot Schematics ------------------ None Fabricated ------------ Nothing Alien Tech Used ----------------- None Achievements -------------- None Challenges ------------ None Game ------ Seed ImpulseDrainedMegatreads Manual? 0 Play Time 00:19:57 Cumulative 21.6 hours Start 2024.07.02 @ 19:35:04 End 2024.07.02 @ 20:01:31 Sessions 1 Manual Loads 0 Difficulty Rogue Special Mode None Game No. 17 Rogue 17 Adventurer 0 Explorer 0 Win Type - Total 0 Types 0/0/0/0/0/0/0/0/0 Lore% 10 Gallery% 29 Achievement% 22 Wizard Run 0 Options --------- Layout 0 ASCII 0 Keyboard 1 Movement Numpad Keybinds 0 Fullscreen 0 Font 16/SmallcapsGlow Map View 88x55 Zoom Use 0% Tactical HUD 1 Map Filters NONE Filters NONE Steam 1 RUN: 7d365b2b-87e1-446d-bd3d-807882f6c2cb